bitfinex/quotes_SOLUSD_20241218
["timestamp","ask_amount","ask_price","bid_price","bid_amount"]
[1734496427010,18.13517981,215.82,215.69,0.69515013]
[1734496427295,0.69253702,215.81,215.69,0.69515013]
[1734496427993,18.13517981,215.84,215.7,23.776884]
[1734496428198,18.13517981,215.84,215.71,0.69502995]
[1734496428369,18.13517981,215.86,215.71,0.69502995]
[1734496428572,18.13517981,215.84,215.71,0.69502995]
[1734496428766,0.69253702,215.83,215.71,0.69502995]
[1734496429014,18.13517981,215.82,215.69,0.69517314]
[1734496429167,18.13517981,215.8,215.66,0.69522878]
[1734496429498,0.69253702,215.79,215.66,0.69522878]
[1734496430296,18.13517981,215.78,215.65,6.5492]
[1734496430602,0.69253702,215.77,215.65,6.5492]
[1734496431004,18.13517981,215.74,215.58,8.8722]
[1734496431166,0.69253702,215.73,215.58,9.56768487]
[1734496431613,18.13517981,215.72,215.58,9.56768487]
[1734496431944,20.69253702,215.71,215.58,9.56768487]
[1734496432097,0.69253702,215.71,215.58,9.56768487]
[1734496432278,0.69253702,215.73,215.58,9.56768487]
[1734496433403,18.82771683,215.76,215.59,26.096084]
[1734496433574,18.82771683,215.76,215.61,23.776884]
[1734496433774,18.82771683,215.76,215.62,0.69536969]
[1734496434382,18.13517981,215.74,215.62,0.69536969]
[1734496434586,0.69253702,215.73,215.62,0.69536969]
[1734496434897,0.69253702,215.73,215.59,0.69543993]
[1734496435680,20.0,215.74,215.6,23.776884]
[1734496435879,18.13517981,215.78,215.63,20.0]
[1734496436085,0.69253702,215.77,215.64,0.69527545]
[1734496436516,18.13517981,215.78,215.64,0.69527545]
[1734496436718,18.13517981,215.76,215.61,0.6952519]
[1734496437013,0.69253702,215.75,215.61,0.6952519]
[1734496438724,0.69253702,215.75,215.58,8.8722]
[1734496438725,18.13517981,215.74,215.59,0.69546358]
[1734496438903,0.69253702,215.73,215.59,0.69546358]
[1734496439583,18.13517981,215.74,215.6,23.776884]
[1734496439916,2.71645025,215.81,215.61,0.69536133]
[1734496439917,0.69253702,215.73,215.61,0.69536133]
[1734496440099,0.69253702,215.75,215.62,23.776884]
[1734496440429,0.69253702,215.77,215.63,0.69533635]
[1734496441389,0.69253702,215.77,215.6,23.776884]
[1734496441390,18.13517981,215.76,215.61,0.695361]
[1734496441594,2.71645025,215.81,215.61,0.695361]
[1734496441595,18.13517981,215.72,215.61,0.695361]
[1734496441826,18.13517981,215.72,215.58,8.8722]
[1734496441827,0.69253702,215.71,215.59,0.69550828]
[1734496443014,0.69253702,215.73,215.59,0.69550828]
[1734496443231,0.69253702,215.74,215.6,23.776884]
[1734496443431,18.82771683,215.78,215.62,23.776884]
[1734496443741,18.82771683,215.78,215.63,0.6953011]
[1734496443899,0.69253702,215.78,215.63,0.6953011]
[1734496444106,0.69253702,215.78,215.64,23.776884]
[1734496444417,0.69253702,215.8,215.66,23.776884]
[1734496444615,8.3601,215.82,215.69,8.6015]
[1734496444616,2.95023702,215.82,215.69,8.6015]
[1734496444818,18.13517981,215.85,215.71,23.776884]
[1734496445034,0.69253702,215.86,215.71,23.776884]
[1734496445035,18.82771683,215.84,215.72,0.69503813]
[1734496445193,0.69253702,215.84,215.72,0.69503813]
[1734496445801,13.6234,215.87,215.72,0.69503813]
[1734496445802,18.82771683,215.86,215.72,0.69503813]
[1734496446231,18.13517981,215.84,215.69,8.6015]
[1734496446429,0.69253702,215.83,215.7,0.69514238]
[1734496447106,18.13517981,215.82,215.7,0.69514238]
[1734496447422,0.69253702,215.81,215.7,0.69514238]
[1734496447600,18.82771683,215.84,215.7,0.69514238]
[1734496448513,18.13517981,215.86,215.71,23.776884]
[1734496448696,0.69253702,215.85,215.72,0.69500531]
[1734496449596,18.82771683,215.85,215.72,0.69500531]
[1734496449801,18.13517981,215.83,215.7,0.69505079]
[1734496450016,18.13517981,215.84,215.72,0.69505079]
[1734496450214,0.69253702,215.83,215.72,0.69505079]
[1734496450840,18.13517981,215.82,215.7,0.69511997]
[1734496451138,38.13517981,215.78,215.67,0.69519804]
[1734496451348,18.13517981,215.76,215.64,9.29683715]
[1734496451508,0.69253702,215.75,215.64,9.29683715]
[1734496451813,38.13517981,215.78,215.64,9.29683715]
[1734496452012,0.69253702,215.77,215.64,9.29683715]
[1734496452198,2.042,215.8,215.64,9.29683715]
[1734496452403,18.13517981,215.81,215.65,23.776884]
[1734496452626,18.82771683,215.8,215.67,23.776884]
[1734496452828,18.82771683,215.8,215.68,0.69521414]
[1734496453199,0.69253702,215.8,215.68,0.69521414]
[1734496453933,18.13517981,215.79,215.68,0.69521414]
[1734496454231,18.13517981,215.77,215.65,0.69527886]
[1734496454408,18.82771683,215.78,215.65,0.69527886]
[1734496454910,20.0,215.8,215.65,0.69527886]
[1734496455128,18.82771683,215.8,215.65,0.69527886]
[1734496455332,20.0,215.8,215.66,23.776884]
[1734496455517,0.69253702,215.8,215.67,0.69516668]
[1734496455711,18.13517981,215.81,215.68,23.776884]
[1734496456035,18.82771683,215.82,215.69,20.69512278]
[1734496456433,18.82771683,215.82,215.69,0.69512278]
[1734496456641,18.13517981,215.79,215.69,0.69512278]
[1734496456937,0.69253702,215.78,215.67,0.69523405]
[1734496457303,0.69253702,215.78,215.68,23.776884]
[1734496457514,18.13517981,215.81,215.69,0.6951734]
[1734496457721,0.69253702,215.8,215.69,0.6951734]
[1734496457927,18.13517981,215.81,215.69,0.6951734]
[1734496458113,11.33269328,215.81,215.69,0.6951734]
[1734496458822,0.69253702,215.8,215.69,0.6951734]
[1734496459338,0.69253702,215.8,215.66,0.69524699]
[1734496459545,11.33269328,215.81,215.67,23.776884]
[1734496459713,0.69253702,215.8,215.68,0.69511607]
[1734496460117,11.33269328,215.81,215.68,0.69511607]
[1734496460313,11.33269328,215.77,215.65,0.69511967]
[1734496460532,0.69253702,215.76,215.65,0.69511967]
[1734496461042,12.0252303,215.79,215.65,0.69511967]
[1734496461612,11.33269328,215.79,215.66,23.776884]
[1734496461841,11.33269328,215.81,215.67,0.6951705]
[1734496462611,11.33269328,215.83,215.68,23.776884]
[1734496462928,11.33269328,215.83,215.7,23.776884]
[1734496463139,0.69253702,215.82,215.71,0.69504885]
[1734496463435,11.33269328,215.81,215.71,0.69504885]
[1734496463640,11.33269328,215.83,215.71,0.69504885]
[1734496464049,11.33269328,215.83,215.72,0.69506209]
[1734496464617,2.042,215.86,215.73,23.776884]
[1734496464835,11.33269328,215.87,215.74,0.69493097]
[1734496465155,11.33269328,215.87,215.75,6.4023]
[1734496465326,11.33269328,215.87,215.76,0.69492006]
[1734496465517,3.21243702,215.91,215.77,23.776884]
[1734496465717,0.69253702,215.93,215.79,23.776884]
[1734496465937,0.69253702,215.93,215.8,0.69476755]
[1734496466620,14.5451303,215.96,215.81,23.776884]
[1734496466816,14.5451303,215.96,215.82,0.69466067]
[1734496467023,21.034557,215.96,215.83,23.776884]
[1734496467222,11.33269328,215.98,215.85,23.776884]
[1734496467420,29.84597228,215.98,215.86,0.39721571]
[1734496467658,12.20094342,215.97,215.86,0.39721571]
[1734496467821,0.86825014,215.97,215.86,0.39721571]
[1734496468148,12.20095515,215.97,215.86,0.39721571]
[1734496468356,11.33269328,215.95,215.79,23.776884]
[1734496468514,11.33269328,215.95,215.83,23.776884]
[1734496468715,11.33269328,215.95,215.84,0.69469485]
[1734496468948,0.86837763,215.94,215.84,0.69469485]
[1734496469320,11.33269328,215.95,215.84,0.69469485]
[1734496470020,12.20108991,215.96,215.84,0.69469485]
[1734496471333,11.33269328,215.95,215.84,0.69469485]
[1734496471533,0.86837516,215.94,215.84,0.69469485]
[1734496471947,11.33269328,216.0,215.86,6.4023]
[1734496472245,11.33269328,216.0,215.87,24.47143107]
[1734496472414,12.20088273,216.0,215.87,24.47143107]
[1734496472818,11.33269328,216.0,215.87,24.47143107]
[1734496473018,11.33269328,216.05,215.91,23.776884]
[1734496473247,30.70824514,216.05,215.93,23.776884]
[1734496473436,0.86805786,216.05,215.94,0.6943668]
[1734496474474,11.33269328,216.11,215.97,23.776884]
[1734496474658,19.37080515,216.1,215.98,0.69423052]
[1734496474841,0.86778815,216.13,215.99,23.776884]
[1734496475179,14.52407959,216.17,216.01,23.776884]
[1734496475371,14.52407959,216.17,216.03,23.776884]
[1734496475546,0.86768631,216.17,216.05,23.776884]
[1734496475744,17.9427,216.18,216.07,23.776884]
[1734496476060,0.86743226,216.19,216.08,0.69392844]
[1734496476281,0.5664696,216.21,216.09,23.776884]
[1734496476567,0.5664696,216.21,216.1,0.69382088]
[1734496476937,0.86728258,216.2,216.1,0.69382088]
[1734496477165,12.19997586,216.2,216.1,0.69382088]
[1734496477840,32.19997586,216.2,216.09,0.69392874]
[1734496478061,18.06723514,216.19,216.09,0.69392874]
[1734496478268,18.06723514,216.16,216.03,0.69395361]
[1734496478434,0.86757408,216.15,216.03,0.69395361]
[1734496479231,20.0,216.16,216.03,0.69395361]
[1734496479467,0.86741424,216.2,216.05,20.0]
[1734496479659,20.0,216.18,216.06,0.69391973]
[1734496479965,0.86741424,216.2,216.06,0.69391973]
[1734496479966,38.93464938,216.2,216.06,0.69391973]
[1734496480166,20.0,216.18,216.07,23.776884]
[1734496480470,20.0,216.18,216.08,0.69389152]
[1734496480646,20.0,216.19,216.08,0.69389152]
[1734496480863,0.86738752,216.18,216.08,0.69389152]
[1734496481377,18.06723514,216.17,216.06,0.69399783]
[1734496481679,0.86758997,216.16,216.06,0.69399783]
[1734496481871,38.06723514,216.18,216.06,0.69399783]
[1734496482179,0.86747636,216.17,216.06,0.69399783]
[1734496482377,0.86747636,216.17,216.07,0.69397988]
[1734496482707,18.06723514,216.16,216.05,0.69400688]
[1734496482850,0.86747636,216.17,216.02,9.1788]
[1734496482851,18.06723514,216.14,216.03,0.69400688]
[1734496483052,0.8676925,216.13,216.03,0.694154]
[1734496483252,0.86766523,216.16,216.03,0.694154]
[1734496483563,20.0,216.14,216.03,0.694154]
[1734496484167,20.0,216.14,216.04,23.776884]
[1734496484377,20.0,216.14,216.05,0.6940424]
[1734496484680,20.0,216.1,215.97,7.00327275]
[1734496484854,0.86786014,216.09,215.97,7.00327275]
[1734496485562,38.06723514,216.08,215.97,7.00327275]
[1734496485765,20.0,216.04,215.93,0.69428392]
[1734496485996,0.86806216,216.03,215.93,0.69428392]
[1734496486155,18.9352973,216.03,215.92,6.3092]
[1734496486467,20.0,216.0,215.92,6.3092]
[1734496486675,0.86816092,215.99,215.87,7.00372873]
[1734496487888,20.0,215.94,215.84,0.69461526]
[1734496488468,0.86838347,215.93,215.84,0.69461526]
[1734496488880,0.86838347,215.93,215.83,0.69474836]
[1734496489494,20.86842432,215.94,215.83,0.69474836]
[1734496490067,20.0,215.92,215.83,0.69474836]
[1734496490266,0.8685104,215.91,215.8,0.69480832]
[1734496490774,18.06723514,215.89,215.77,7.14457053]
[1734496490999,0.86868537,215.88,215.77,6.4497]
[1734496491202,18.06723514,215.84,215.74,0.69503625]
[1734496491499,18.06723514,215.84,215.72,0.69509279]
[1734496491500,0.86886599,215.83,215.72,0.69509279]
[1734496491673,18.06723514,215.82,215.71,6.4497]
[1734496492026,0.86899584,215.81,215.69,0.69510301]
[1734496492493,38.06723514,215.79,215.67,0.69522847]
[1734496492703,0.86910925,215.78,215.67,0.69522847]
[1734496492888,18.93634439,215.78,215.67,0.69522847]
[1734496493277,18.06723514,215.77,215.66,6.4497]
[1734496493484,0.869141,215.76,215.66,6.4497]
[1734496494597,0.869141,215.76,215.64,0.69532788]
[1734496495069,0.86915744,215.78,215.64,0.69532788]
[1734496495266,20.86915744,215.78,215.64,20.69532788]
[1734496495474,20.86915744,215.78,215.65,23.776884]
[1734496495669,20.0,215.77,215.66,0.69530198]
[1734496495883,0.86910796,215.76,215.66,0.69530198]
[1734496496273,0.86910817,215.8,215.68,20.0]
[1734496496500,18.06723514,215.85,215.69,0.69517219]
[1734496496720,23.149,216.0,215.74,23.776884]
[1734496496721,0.86885342,215.9,215.74,23.776884]
[1734496496873,0.86861559,215.89,215.76,23.776884]
[1734496497199,0.86866774,215.89,215.77,0.69493419]
[1734496497401,0.86863271,215.88,215.77,0.69493419]
[1734496497617,0.86871601,215.87,215.77,0.69493419]
[1734496497910,0.86867385,215.89,215.77,0.69493419]
[1734496498217,18.06723514,215.9,215.74,6.4497]
[1734496498218,0.86865086,215.9,215.78,0.69493908]
[1734496498500,2.72959584,215.94,215.78,0.69493908]
[1734496498501,0.86855948,215.91,215.78,0.69493908]
[1734496498681,0.86846607,215.93,215.79,23.776884]
[1734496498871,18.93570121,215.93,215.8,0.69481216]
[1734496499077,18.06723514,215.92,215.8,0.69481216]
[1734496499275,0.86854724,215.91,215.8,0.69481216]
[1734496500693,20.0,215.89,215.8,0.69481216]
[1734496501104,0.86858713,215.88,215.78,0.6948697]
[1734496501411,20.0,215.89,215.78,0.6948697]
[1734496502323,38.06723514,215.9,215.78,0.6948697]
[1734496502479,0.86862384,215.89,215.78,0.6948697]
[1734496503193,18.93587477,215.88,215.75,0.6949117]
[1734496503397,0.86877429,215.89,215.75,0.6949117]
[1734496503598,20.0,215.91,215.77,20.0]
[1734496503790,20.0,215.91,215.78,0.69480629]
[1734496504098,0.86850167,215.96,215.78,0.69480629]
[1734496504298,0.86850167,215.96,215.81,20.0]
[1734496504519,18.93573681,215.96,215.82,0.69474138]
[1734496504917,0.86840447,215.97,215.83,23.776884]
[1734496505096,0.86840447,215.97,215.84,0.69464109]
[1734496506091,18.06723514,215.96,215.84,0.69464109]
[1734496506290,18.06723514,215.94,215.84,0.69464109]
[1734496506608,38.06723514,215.91,215.81,0.69475027]
[1734496506822,18.06723514,215.89,215.79,0.69486427]
[1734496506994,20.86858034,215.9,215.75,0.6949297]
[1734496506995,18.93589726,215.88,215.75,0.6949297]
[1734496507192,18.93595855,215.87,215.75,0.6949297]
[1734496507519,18.06723514,215.85,215.74,6.4497]
[1734496507724,18.06723514,215.83,215.74,6.4497]
[1734496507897,0.86890046,215.82,215.69,6.5054]
[1734496508219,18.06723514,215.85,215.7,0.69509465]
[1734496508707,18.06723514,215.87,215.71,1.1589]
[1734496508904,18.93606516,215.89,215.73,23.776884]
[1734496509215,20.0,215.86,215.74,0.69494678]
[1734496509528,0.86876998,215.89,215.75,23.776884]
[1734496509736,18.06723514,215.88,215.76,0.69493139]
[1734496510017,0.86877085,215.87,215.76,0.69493139]
[1734496510821,18.06723514,215.86,215.74,20.69501716]
[1734496511020,0.86876988,215.85,215.74,0.69501716]
[1734496511322,20.0,215.87,215.74,0.69501716]
[1734496511505,0.86876828,215.85,215.74,0.69501716]
[1734496511708,0.86876828,215.85,215.72,20.0]
[1734496511709,18.06723514,215.84,215.72,0.69504016]
[1734496511910,0.86886477,215.83,215.72,0.69504016]
[1734496512795,0.86886477,215.83,215.7,0.69512688]
[1734496513436,20.86886477,215.83,215.7,0.69512688]
[1734496513598,0.86886477,215.83,215.7,0.69512688]
[1734496513800,18.06723514,215.84,215.7,0.69512688]
[1734496514024,20.0,215.81,215.7,0.69512688]
[1734496514228,20.0,215.77,215.68,0.69520059]
[1734496514422,0.86913928,215.76,215.65,0.69531142]
[1734496514638,18.93637442,215.76,215.64,6.5054]
[1734496514931,18.06723514,215.74,215.62,0.69537563]
[1734496515226,0.86931714,215.73,215.62,0.69537563]
[1734496515405,18.06723514,215.72,215.62,0.69537563]
[1734496515719,0.86934299,215.71,215.62,0.69537563]
[1734496516234,0.86934345,215.7,215.59,0.69547476]
[1734496517344,0.86943802,215.69,215.59,0.69547476]
[1734496517653,0.8694452,215.68,215.58,6.5054]
[1734496517928,20.0,215.67,215.57,10.0]
[1734496518230,0.86953997,215.69,215.57,10.0]
[1734496518744,20.0,215.68,215.57,10.0]
[1734496519034,20.0,215.66,215.57,10.0]
[1734496519230,0.86956275,215.65,215.57,10.0]
[1734496519845,20.0,215.64,215.57,10.0]
[1734496520030,0.86971955,215.63,215.57,10.0]
[1734496520327,6.3717,215.67,215.57,10.0]
[1734496520534,0.8694981,215.66,215.57,10.0]
[1734496521234,0.86954408,215.67,215.57,10.0]
[1734496521917,0.86954408,215.67,215.58,0.69562299]
[1734496522129,38.06723514,215.69,215.57,10.0]
[1734496522432,0.86954652,215.68,215.57,10.0]
[1734496522921,0.86954652,215.68,215.58,0.69560154]
[1734496523514,0.86951674,215.69,215.58,0.69560154]
[1734496524338,18.06723514,215.73,215.6,20.0]
[1734496524561,20.80567138,215.75,215.61,0.69537578]
[1734496524837,18.06723514,215.79,215.63,8.2066]
[1734496525046,0.86909658,215.78,215.64,0.69527726]
[1734496525335,18.06723514,215.77,215.64,0.69527726]
[1734496525532,0.86918969,215.76,215.64,0.69527726]
[1734496526418,18.06723514,215.75,215.64,0.69527726]
[1734496526622,0.869236,215.74,215.64,0.69527726]
[1734496527135,0.869236,215.74,215.63,6.2604]
[1734496527442,20.0,215.72,215.58,0.69551824]
[1734496527743,0.86943078,215.71,215.58,0.69551824]
[1734496528851,18.93666592,215.71,215.58,0.69551824]
[1734496529446,18.06723514,215.75,215.58,0.69551824]
[1734496529744,0.86919894,215.74,215.59,23.776884]
[1734496529949,0.86919894,215.74,215.61,23.776884]
[1734496530245,0.86919894,215.74,215.62,0.69537392]
[1734496530444,0.86919894,215.74,215.62,20.69537392]
[1734496530750,18.06723514,215.73,215.6,20.69540938]
[1734496530929,0.86940956,215.72,215.6,20.69540938]
[1734496532172,18.06723514,215.71,215.58,0.69553245]
[1734496532469,18.06723514,215.67,215.57,10.0]
[1734496532648,0.86960914,215.66,215.57,10.0]
[1734496533060,18.06723514,215.65,215.57,10.0]
[1734496533261,0.86972491,215.64,215.57,10.0]
[1734496534456,20.0,215.62,215.57,10.0]
[1734496534656,18.93714005,215.61,215.57,10.0]
[1734496535040,20.0,215.6,215.57,10.0]
[1734496535863,0.86978015,215.62,215.57,10.0]
[1734496537538,38.06723514,215.61,215.57,10.0]
[1734496537734,0.86982533,215.6,215.57,10.0]
[1734496539452,18.06723514,215.58,215.57,10.0]
[1734496540730,18.93716853,215.58,215.57,10.0]
[1734496541345,20.0,215.61,215.57,10.0]
[1734496541346,18.93715945,215.6,215.57,10.0]
[1734496542058,18.93704568,215.64,215.57,10.0]
[1734496543959,18.06723514,215.62,215.57,10.0]
[1734496544131,0.86981127,215.61,215.57,10.0]
[1734496544339,20.86981127,215.61,215.57,10.0]
[1734496544539,0.86971754,215.63,215.57,10.0]
[1734496546250,18.93695268,215.63,215.57,10.0]
[1734496547338,18.06723514,215.62,215.57,10.0]
[1734496547661,0.86983722,215.61,215.57,10.0]
[1734496548248,18.93707236,215.61,215.57,10.0]
[1734496548442,18.06723514,215.6,215.57,10.0]
[1734496548642,18.06723514,215.58,215.57,10.0]
[1734496549263,18.9371846,215.58,215.57,10.0]
[1734496551749,18.9371846,215.58,215.57,7.5735]
[1734496551951,42.7140686,215.58,215.57,4.0075]
[1734496552272,42.7140686,215.58,215.57,1.63]
[1734496552652,20.0,215.55,215.54,10.0]
[1734496552967,38.93734329,215.55,215.54,10.0]
[1734496553163,20.87010815,215.55,215.54,10.0]
[1734496553346,0.87010815,215.55,215.54,10.0]
[1734496553550,18.06723514,215.55,215.54,10.0]
[1734496553946,29.66543514,215.55,215.54,10.0]
[1734496554842,11.5982,215.55,215.54,10.0]
[1734496555255,29.66543514,215.55,215.54,10.0]
[1734496557453,53.44231914,215.55,215.54,10.0]
[1734496558873,30.53560515,215.55,215.54,10.0]
[1734496559053,18.06723514,215.56,215.54,10.0]
[1734496559263,18.93725175,215.55,215.54,10.0]
[1734496560248,0.87001661,215.55,215.54,10.0]
[1734496560848,18.06723514,215.58,215.54,10.0]
[1734496561048,0.86989606,215.57,215.54,10.0]
[1734496561760,18.06723514,215.58,215.54,10.0]
[1734496561959,18.93713388,215.6,215.54,10.0]
[1734496562172,0.86989874,215.6,215.54,10.0]
[1734496562478,18.06723514,215.62,215.54,10.0]
[1734496562798,18.06723514,215.57,215.54,10.0]
[1734496562950,18.06723514,215.58,215.54,10.0]
[1734496563151,18.06723514,215.6,215.54,10.0]
[1734496563352,18.9371421,215.61,215.54,10.0]
[1734496564073,11.35287793,215.6,215.54,10.0]
[1734496564283,12.22270021,215.59,215.54,10.0]
[1734496565148,11.35287793,215.58,215.54,10.0]
[1734496565354,0.86999537,215.57,215.54,10.0]
[1734496566365,0.86993903,215.58,215.54,10.0]
[1734496566962,12.22281696,215.58,215.54,10.0]
[1734496567363,11.35287793,215.57,215.54,10.0]
[1734496567577,0.86999896,215.56,215.54,10.0]
[1734496568375,11.35287793,215.55,215.54,10.0]
[1734496568679,12.22287689,215.56,215.54,10.0]
[1734496568875,0.86999896,215.56,215.54,10.0]
[1734496569376,12.22287689,215.56,215.54,10.0]
[1734496569573,11.35287793,215.55,215.54,10.0]
[1734496569953,12.22287689,215.56,215.54,10.0]
[1734496570773,0.86999896,215.56,215.54,10.0]
[1734496570977,12.22287689,215.56,215.54,10.0]
[1734496572864,11.35287793,215.58,215.54,10.0]
[1734496573263,0.86985633,215.57,215.54,10.0]
[1734496573586,11.35287793,215.58,215.54,10.0]
[1734496573767,12.22275705,215.6,215.54,10.0]
[1734496574155,11.35287793,215.6,215.54,10.0]
[1734496574556,0.86978622,215.59,215.54,10.0]
[1734496574958,12.22267773,215.6,215.54,10.0]
[1734496576462,11.35287793,215.6,215.54,10.0]
[1734496576663,0.86979205,215.59,215.54,10.0]
[1734496576877,11.35287793,215.62,215.54,10.0]
[1734496577474,0.86970096,215.65,215.54,10.0]
[1734496577682,11.35287793,215.63,215.54,10.0]
[1734496577880,12.2225912,215.62,215.54,10.0]
[1734496578084,11.35287793,215.62,215.54,10.0]
[1734496578961,0.8696792,215.61,215.54,10.0]
[1734496579157,11.35287793,215.6,215.54,10.0]
[1734496579485,11.35287793,215.58,215.54,10.0]
[1734496579663,0.8699202,215.57,215.54,10.0]
[1734496579984,0.86991618,215.57,215.54,10.0]
[1734496580171,11.35287793,215.58,215.54,10.0]
[1734496580572,11.35287793,215.6,215.54,10.0]
[1734496580771,11.35287793,215.63,215.54,10.0]
[1734496580989,12.22249989,215.66,215.55,0.69569757]
[1734496581156,11.35287793,215.65,215.55,0.69569757]
[1734496581362,12.22247311,215.64,215.55,0.69569757]
[1734496581682,11.35287793,215.63,215.55,0.69569757]
[1734496581889,11.35287793,215.63,215.54,10.0]
[1734496582186,0.86963981,215.62,215.54,10.0]
[1734496582388,11.35287793,215.63,215.54,10.0]
[1734496583259,11.35287793,215.65,215.54,10.0]
[1734496583467,11.35287793,215.65,215.55,0.69570808]
[1734496583679,12.22251303,215.67,215.56,1.9598]
[1734496583985,12.22234609,215.67,215.56,1.9598]
[1734496584377,11.35287793,215.65,215.56,1.9598]
[1734496584684,0.86968012,215.64,215.56,1.9598]
[1734496585085,0.86968012,215.64,215.54,10.0]
[1734496585086,11.35287793,215.63,215.54,10.0]
[1734496585389,11.35287793,215.61,215.54,10.0]
[1734496585694,0.8698126,215.6,215.54,10.0]
[1734496586362,11.35287793,215.63,215.54,10.0]
[1734496586569,11.35287793,215.65,215.54,10.0]
[1734496586789,11.35287793,215.65,215.55,0.69570256]
[1734496587676,0.86957203,215.67,215.55,0.69570256]
[1734496588584,12.22235202,215.7,215.55,0.69570256]
[1734496588773,12.22231168,215.69,215.55,0.69570256]
[1734496589480,0.86943375,215.69,215.55,0.69570256]
[1734496589686,0.86940188,215.76,215.59,1.9598]
[1734496589871,0.86940188,215.76,215.61,20.0]
[1734496589872,11.35287793,215.75,215.61,20.0]
[1734496590076,12.2220697,215.75,215.62,0.69535341]
[1734496590520,11.35287793,215.75,215.62,0.69535341]
[1734496590701,12.2220601,215.76,215.62,0.69535341]
[1734496590867,11.35287793,215.75,215.62,0.69535341]
[1734496591065,11.35287793,215.72,215.62,0.69535341]
[1734496591297,12.22223372,215.71,215.6,0.69535191]
[1734496591595,0.86935579,215.71,215.6,0.69535191]
[1734496591899,12.22220047,215.75,215.61,20.0]
[1734496592192,11.35287793,215.74,215.62,0.69536488]
[1734496592995,11.35287793,215.75,215.62,0.69536488]
[1734496593297,0.86917706,215.74,215.62,0.69536488]
[1734496593592,12.22207846,215.77,215.62,0.69536488]
[1734496594096,11.35287793,215.76,215.62,0.69536488]
[1734496594292,0.86917208,215.75,215.62,0.69536488]
[1734496594496,12.22205001,215.75,215.62,0.69536488]
[1734496594678,0.86917208,215.75,215.62,0.69536488]
[1734496594878,0.86915503,215.81,215.67,20.0]
[1734496595078,12.22181003,215.84,215.68,20.69514568]
[1734496595293,11.352878,215.85,215.7,6.2443]
[1734496595600,11.35287793,215.87,215.74,1.8438]
[1734496595772,0.86875224,215.88,215.74,1.8438]
[1734496595773,23.57448652,215.88,215.75,0.69498447]
[1734496595978,14.25382071,215.9,215.75,0.69498447]
[1734496596288,0.86859646,215.91,215.75,0.69498447]
[1734496596492,12.22147439,215.91,215.76,6.2443]
[1734496596690,12.22147439,215.91,215.77,0.69483865]
[1734496597004,11.35287793,215.88,215.77,0.69483865]
[1734496597170,0.86867988,215.87,215.77,0.69483865]
[1734496597722,20.0,215.89,215.77,0.69483865]
[1734496597910,12.22150156,215.89,215.77,0.69483865]
[1734496598221,11.35287793,215.88,215.77,0.69483865]
[1734496598378,0.86864596,215.88,215.77,0.69483865]
[1734496598577,11.35287793,215.89,215.77,0.69483865]
[1734496598777,0.86861826,215.88,215.77,0.69483865]
[1734496598979,12.22149619,215.88,215.77,0.69483865]
[1734496599205,11.35287793,215.87,215.77,0.69483865]
[1734496599476,11.35287793,215.84,215.76,6.2443]
[1734496599709,0.86886323,215.83,215.76,6.2443]
[1734496600076,20.0,215.83,215.76,6.2443]
[1734496600426,20.86883184,215.83,215.76,6.2443]
[1734496600581,11.35287793,215.82,215.7,6.3597]
[1734496600808,12.22184469,215.81,215.7,7.05487341]
[1734496601249,11.35287793,215.8,215.7,6.3597]
[1734496601404,11.35287793,215.77,215.64,0.69520281]
[1734496601584,12.22207979,215.76,215.64,0.69520281]
[1734496601799,20.0,215.74,215.64,0.69520281]
[1734496602106,11.35287793,215.8,215.65,0.69526822]
[1734496602273,12.22183951,215.81,215.65,0.69526822]
[1734496602474,20.0,215.78,215.65,0.69526822]
[1734496602903,20.0,215.78,215.66,23.776884]
[1734496603103,20.0,215.78,215.67,0.69514626]
[1734496603308,11.35287793,215.84,215.69,20.0]
[1734496603485,20.0,215.81,215.7,0.69508489]
[1734496603886,32.22173405,215.83,215.7,0.69508489]
[1734496604099,11.35287793,215.82,215.7,0.69508489]
[1734496604310,11.35287793,215.8,215.7,0.69508489]
[1734496604510,0.86900125,215.79,215.7,0.69508489]
[1734496604689,31.35287793,215.81,215.7,0.69508489]
[1734496605015,20.0,215.81,215.7,0.69508489]
[1734496605201,0.86895435,215.8,215.7,0.69508489]
[1734496605385,0.86897309,215.81,215.7,0.69508489]
[1734496606002,20.0,215.81,215.7,0.69508489]
[1734496606311,0.86888277,215.8,215.7,0.69508489]
[1734496606699,20.86896224,215.81,215.7,0.69508489]